bitfinex/quotes_BTCUSD_20241001
["timestamp","ask_amount","ask_price","bid_price","bid_amount"]
[1727811049845,0.193132,62134.0,62129.0,0.193144]
[1727811050050,0.193132,62134.0,62129.0,0.196144]
[1727811050268,0.193132,62134.0,62129.0,0.193144]
[1727811050475,0.27415537,62134.0,62129.0,0.193144]
[1727811050692,0.27415537,62134.0,62130.0,0.004]
[1727811050693,0.08102337,62134.0,62130.0,0.004]
[1727811050932,0.02522509,62133.0,62130.0,0.004]
[1727811051178,0.21836109,62133.0,62130.0,0.004]
[1727811051404,0.21836109,62133.0,62130.0,0.005]
[1727811051661,0.02522509,62133.0,62130.0,0.005]
[1727811051921,0.21836009,62133.0,62130.0,0.004]
[1727811052336,0.21836009,62133.0,62128.0,0.193149]
[1727811052775,0.21836009,62133.0,62129.0,0.002]
[1727811053006,0.21836009,62133.0,62129.0,0.193146]
[1727811053216,0.21836009,62133.0,62130.0,0.003]
[1727811053442,0.21836009,62133.0,62129.0,0.193146]
[1727811053878,0.53040488,62133.0,62129.0,0.003]
[1727811054113,0.53040488,62133.0,62111.0,0.1564578]
[1727811054114,0.386289,62130.0,62118.0,0.0782]
[1727811054339,0.1564578,62132.0,62126.0,0.24056967]
[1727811054340,0.193151,62128.0,62126.0,0.24056967]
[1727811054580,0.193151,62128.0,62124.0,0.193159]
[1727811054844,0.193157,62126.0,62120.0,0.386345]
[1727811055072,0.193157,62126.0,62121.0,0.193171]
[1727811055529,0.193166,62123.0,62118.0,0.193179]
[1727811055761,0.02522729,62125.0,62117.0,0.386366]
[1727811055993,0.193166,62123.0,62119.0,0.193176]
[1727811056211,0.193166,62123.0,62121.0,0.001]
[1727811056212,0.40776698,62122.0,62121.0,0.001]
[1727811057306,0.3496258,62122.0,62121.0,0.001]
[1727811057722,0.386349,62120.0,62115.0,0.193189]
[1727811057934,0.193188,62116.0,62111.0,0.24056967]
[1727811058161,0.386362,62118.0,62113.0,0.193193]
[1727811058374,0.24056967,62114.0,62104.0,0.0937]
[1727811058598,0.18168856,62117.0,62111.0,0.24056967]
[1727811058806,0.18168856,62117.0,62115.0,0.001]
[1727811059019,0.193186,62116.0,62115.0,0.001]
[1727811059297,0.193186,62116.0,62106.0,0.38643]
[1727811059298,0.46250216,62116.0,62106.0,0.38643]
[1727811059534,0.18168856,62117.0,62106.0,0.38643]
[1727811059535,0.001,62114.0,62108.0,0.40342]
[1727811059765,0.002,62114.0,62110.0,0.579612]
[1727811059979,0.002,62114.0,62112.0,0.193197]
[1727811060196,0.002,62114.0,62113.0,0.193196]
[1727811060405,0.001,62114.0,62113.0,0.193196]
[1727811060864,0.02523076,62117.0,62116.0,0.193186]
[1727811063552,0.02523076,62117.0,62116.0,0.200186]
[1727811063553,0.02623076,62117.0,62116.0,0.200186]
[1727811064694,0.02623076,62117.0,62116.0,0.202186]
[1727811065108,0.02623076,62117.0,62116.0,0.200186]
[1727811065767,0.02623076,62117.0,62116.0,0.204186]
[1727811066237,0.02623076,62117.0,62116.0,0.011]
[1727811066461,0.21941376,62117.0,62116.0,0.011]
[1727811066674,0.02623076,62117.0,62116.0,0.011]
[1727811066904,0.21941376,62117.0,62116.0,0.011]
[1727811072585,0.02705076,62117.0,62116.0,0.011]
[1727811072810,0.02705076,62117.0,62116.0,0.204186]
[1727811073031,0.02705076,62117.0,62116.0,0.42649525]
[1727811073254,0.02705076,62117.0,62116.0,0.50769525]
[1727811073659,0.02705076,62117.0,62116.0,0.66415305]
[1727811073877,0.02705076,62117.0,62116.0,0.78715305]
[1727811074089,0.02705076,62117.0,62116.0,0.78315305]
[1727811074536,0.02805076,62117.0,62116.0,0.79015305]
[1727811074927,0.02705076,62117.0,62116.0,0.78315305]
[1727811075761,0.02705076,62117.0,62116.0,0.79715305]
[1727811076178,0.02705076,62117.0,62116.0,0.78315305]
[1727811076392,0.24056967,62133.0,62132.0,0.193137]
[1727811076620,0.24056967,62133.0,62132.0,0.59804625]
[1727811076827,0.000821,62135.0,62134.0,0.29313]
[1727811077029,0.000821,62135.0,62134.0,0.29397445]
[1727811077264,0.000821,62135.0,62134.0,0.452504]
[1727811077516,0.000821,62135.0,62134.0,0.4725878]
[1727811078181,0.00082,62150.0,62141.0,0.386215]
[1727811078182,0.24056967,62145.0,62141.0,0.386215]
[1727811078414,0.24056967,62145.0,62144.0,0.41540825]
[1727811078619,0.00082,62150.0,62149.0,0.193084]
[1727811079896,0.00082,62150.0,62149.0,0.202084]
[1727811080099,0.00082,62150.0,62149.0,0.193084]
[1727811080516,0.00082,62150.0,62149.0,0.196084]
[1727811081175,0.00082,62150.0,62149.0,0.193084]
[1727811081381,0.00082,62150.0,62149.0,0.202084]
[1727811081603,0.00082,62150.0,62149.0,0.205084]
[1727811081823,0.00082,62150.0,62149.0,0.003]
[1727811082027,0.00082,62150.0,62149.0,0.012]
[1727811082459,0.00082,62150.0,62149.0,0.003]
[1727811082668,0.00082,62150.0,62149.0,0.009]
[1727811082881,0.00082,62150.0,62143.0,0.386204]
[1727811083090,0.00082,62150.0,62149.0,0.004]
[1727811083298,0.193901,62150.0,62149.0,0.009]
[1727811083521,0.193901,62150.0,62149.0,0.005]
[1727811083948,0.195901,62150.0,62149.0,0.005]
[1727811084387,0.00282,62150.0,62133.0,0.24056967]
[1727811084632,0.22230925,62147.0,62140.0,0.24056967]
[1727811084871,0.22230925,62147.0,62136.0,0.1]
[1727811085088,0.193114,62140.0,62134.0,0.1]
[1727811085297,0.19311,62141.0,62136.0,0.193124]
[1727811085731,0.386199,62144.0,62138.0,0.193118]
[1727811085966,0.386199,62144.0,62137.0,0.193119]
[1727811086190,0.19312,62138.0,62136.0,0.002]
[1727811086399,0.22230925,62143.0,62130.0,0.24056967]
[1727811086400,0.193129,62135.0,62130.0,0.24056967]
[1727811086613,0.193129,62135.0,62123.0,0.34046967]
[1727811086614,0.19313,62135.0,62129.0,0.193145]
[1727811086829,0.22230925,62135.0,62122.0,0.0819]
[1727811087044,0.193147,62129.0,62123.0,0.43373367]
[1727811087261,0.193153,62127.0,62121.0,0.19317]
[1727811087504,0.386257,62135.0,62121.0,0.386342]
[1727811087741,0.24056967,62131.0,62122.0,0.00321909]
[1727811087926,0.24056967,62131.0,62126.0,0.193155]
[1727811088344,0.1564578,62130.0,62123.0,0.011]
[1727811088583,0.193167,62123.0,62117.0,0.00164]
[1727811088859,0.19318,62118.0,62117.0,0.00164]
[1727811089073,0.22230925,62120.0,62117.0,0.00164]
[1727811089074,0.60866025,62120.0,62117.0,0.00164]
[1727811089294,0.19318,62118.0,62117.0,0.00164]
[1727811089943,0.4309378,62118.0,62117.0,0.00164]
[1727811090155,0.4309378,62118.0,62117.0,0.00264]
[1727811090609,0.4309378,62118.0,62117.0,0.00164]
[1727811091050,0.4349378,62118.0,62117.0,0.00164]
[1727811091471,0.4359378,62118.0,62117.0,0.00164]
[1727811091896,0.4720056,62118.0,62117.0,0.00164]
[1727811092402,0.4710056,62118.0,62117.0,0.00164]
[1727811092865,0.4349378,62118.0,62117.0,0.00164]
[1727811098744,0.65724705,62118.0,62117.0,0.00164]
[1727811100461,0.3536378,62118.0,62117.0,0.00164]
[1727811105363,0.004,62118.0,62117.0,0.194823]
[1727811105611,0.004,62118.0,62117.0,0.00164]
[1727811106097,0.41925204,62118.0,62117.0,0.00164]
[1727811106335,0.59465204,62118.0,62117.0,0.00164]
[1727811106599,0.59465204,62118.0,62112.0,0.00164]
[1727811106600,0.300196,62113.0,62112.0,0.00164]
[1727811106858,0.41554225,62101.0,62093.0,0.00368]
[1727811107075,0.3496908,62101.0,62093.0,0.00368]
[1727811107290,0.37493031,62101.0,62093.0,0.00368]
[1727811108044,0.02523951,62101.0,62093.0,0.390195]
[1727811108269,0.02523951,62101.0,62098.0,0.193241]
[1727811108531,0.03123951,62101.0,62100.0,0.00104]
[1727811108769,0.03123951,62101.0,62100.0,4e-05]
[1727811108986,0.03123951,62101.0,62100.0,0.193276]
[1727811109338,0.03723951,62101.0,62100.0,0.00104]
[1727811109553,0.23047251,62101.0,62100.0,0.00104]
[1727811109753,0.23047251,62101.0,62100.0,0.00268]
[1727811110070,0.23047251,62101.0,62100.0,0.00168]
[1727811110071,0.22447251,62101.0,62100.0,0.00168]
[1727811110467,0.23147251,62101.0,62100.0,0.00268]
[1727811110671,0.23147251,62101.0,62100.0,0.00168]
[1727811110672,0.47536786,62101.0,62100.0,0.00168]
[1727811111076,0.47736786,62101.0,62100.0,0.00168]
[1727811111276,0.47536786,62101.0,62100.0,0.00168]
[1727811111643,0.37993031,62101.0,62100.0,0.00168]
[1727811111843,0.38193031,62101.0,62100.0,0.00168]
[1727811112229,0.37693031,62101.0,62100.0,0.00168]
[1727811112430,0.38193031,62101.0,62100.0,0.00168]
[1727811114712,0.03223951,62101.0,62100.0,0.00168]
[1727811115166,0.03223951,62101.0,62100.0,0.194916]
[1727811115591,0.03223951,62101.0,62100.0,0.00168]
[1727811116027,0.02523951,62101.0,62100.0,0.00168]
[1727811116281,0.02723951,62101.0,62100.0,0.00168]
[1727811116518,0.02723951,62101.0,62100.0,0.194916]
[1727811116741,0.02523951,62101.0,62100.0,0.00168]
[1727811116962,0.02523951,62101.0,62100.0,0.00268]
[1727811117399,0.02523951,62101.0,62100.0,0.194916]
[1727811117609,0.02523951,62101.0,62100.0,0.195916]
[1727811118038,0.02723951,62101.0,62100.0,0.194916]
[1727811118251,0.02723951,62101.0,62100.0,0.00168]
[1727811118476,0.02723951,62101.0,62100.0,0.194916]
[1727811118704,0.04928536,62101.0,62100.0,0.00168]
[1727811118927,0.04728536,62101.0,62100.0,0.00168]
[1727811119140,0.04928536,62101.0,62100.0,0.00168]
[1727811119378,0.04928536,62101.0,62100.0,0.00268]
[1727811119675,0.21847251,62101.0,62100.0,0.00268]
[1727811119891,0.21847251,62101.0,62100.0,0.00368]
[1727811120116,0.21847251,62101.0,62100.0,0.00168]
[1727811120338,0.02523951,62101.0,62100.0,0.00268]
[1727811120555,0.02523951,62101.0,62100.0,0.195916]
[1727811121068,0.02523951,62101.0,62100.0,0.28195219]
[1727811121297,0.02523951,62101.0,62100.0,0.4584738]
[1727811121527,0.02523951,62101.0,62100.0,0.5584738]
[1727811121737,0.02723951,62101.0,62100.0,0.5584738]
[1727811122161,0.02523951,62101.0,62100.0,0.5574738]
[1727811122381,0.02523951,62101.0,62100.0,0.5624738]
[1727811122382,0.02623951,62101.0,62100.0,0.5624738]
[1727811122604,0.02623951,62101.0,62100.0,0.5764738]
[1727811122605,0.02723951,62101.0,62100.0,0.5764738]
[1727811122820,0.02523951,62101.0,62100.0,0.5574738]
[1727811123037,0.02623951,62101.0,62100.0,0.5714738]
[1727811123293,0.02723951,62101.0,62100.0,0.5764738]
[1727811123517,0.02623951,62101.0,62100.0,0.5624738]
[1727811123736,0.02723951,62101.0,62100.0,0.397016]
[1727811124643,0.02623951,62101.0,62100.0,0.392016]
[1727811124867,0.02723951,62101.0,62100.0,0.397016]
[1727811125324,0.02723951,62101.0,62100.0,0.02068]
[1727811125563,0.22047251,62101.0,62100.0,0.02068]
[1727811125778,0.02623951,62101.0,62100.0,0.00668]
[1727811126246,0.02623951,62101.0,62100.0,0.01568]
[1727811126471,0.02523951,62101.0,62100.0,0.195916]
[1727811126885,0.02523951,62101.0,62100.0,0.197916]
[1727811127644,0.02523951,62101.0,62100.0,0.194916]
[1727811128101,0.02623951,62101.0,62100.0,0.00168]
[1727811128325,0.21947251,62101.0,62100.0,0.00168]
[1727811128540,0.21847251,62101.0,62100.0,0.00168]
[1727811128761,0.02623951,62101.0,62100.0,0.00668]
[1727811128970,0.02723951,62101.0,62100.0,0.01268]
[1727811129184,0.02623951,62101.0,62100.0,0.00168]
[1727811129417,0.02523951,62101.0,62100.0,0.00168]
[1727811129659,0.21947251,62101.0,62100.0,0.01068]
[1727811129891,0.02523951,62101.0,62100.0,0.00468]
[1727811130331,0.02523951,62101.0,62100.0,0.00968]
[1727811130820,0.29828536,62101.0,62100.0,0.00668]
[1727811131321,0.29828536,62101.0,62100.0,0.00868]
[1727811131557,0.21847251,62101.0,62100.0,0.00868]
[1727811131793,0.44078176,62101.0,62100.0,0.00668]
[1727811132057,0.64723725,62101.0,62100.0,0.00168]
[1727811132324,0.64723725,62101.0,62100.0,0.00468]
[1727811132325,0.59923956,62101.0,62100.0,0.00468]
[1727811132545,0.59723956,62101.0,62100.0,0.00168]
[1727811132753,0.42514705,62101.0,62100.0,0.00168]
[1727811132991,0.42514705,62101.0,62100.0,0.00268]
[1727811133237,0.02723951,62101.0,62100.0,0.00268]
[1727811133899,0.002,62101.0,62100.0,0.195916]
[1727811134354,0.002,62101.0,62100.0,0.00268]
[1727811134594,0.002,62101.0,62100.0,0.195916]
[1727811135089,0.002,62101.0,62100.0,0.49602525]
[1727811135319,0.002,62101.0,62100.0,0.67548305]
[1727811135983,0.24056967,62109.0,62108.0,0.193211]
[1727811136431,0.28881925,62116.0,62107.0,0.386428]
[1727811136432,0.28881925,62116.0,62111.0,0.193202]
[1727811136884,0.04824958,62115.0,62109.0,0.193205]
[1727811137113,0.04824958,62114.0,62111.0,0.193202]
[1727811137549,0.193205,62110.0,62107.0,0.193213]
[1727811137762,0.193205,62110.0,62106.0,0.193217]
[1727811137977,0.193205,62110.0,62105.0,0.386441]
[1727811137978,0.193205,62110.0,62109.0,0.001]
[1727811138195,0.43547258,62112.0,62109.0,0.001]
[1727811138429,0.5428618,62111.0,62101.0,0.386461]
[1727811138694,0.193226,62104.0,62100.0,0.00168]
[1727811138918,0.04824958,62106.0,62100.0,0.00168]
[1727811138919,0.193233,62101.0,62100.0,0.00168]
[1727811139140,0.2632633,62101.0,62100.0,0.00168]
[1727811139364,0.07237492,62102.0,62100.0,0.00168]
[1727811139585,0.1564578,62103.0,62100.0,0.00168]
[1727811139802,0.193233,62102.0,62100.0,0.00168]
[1727811140014,0.1564578,62103.0,62100.0,0.00168]
[1727811140235,0.193233,62101.0,62100.0,0.01168]
[1727811140462,0.193233,62101.0,62100.0,0.00168]
[1727811140680,0.38646,62102.0,62100.0,0.00168]
[1727811140681,0.19323,62102.0,62100.0,0.00168]
[1727811141117,0.193233,62101.0,62100.0,0.00168]
[1727811141334,0.24147875,62101.0,62100.0,0.00268]
[1727811141547,0.04824575,62101.0,62100.0,0.00268]
[1727811142155,0.24147875,62101.0,62100.0,0.00268]
[1727811142866,0.24147875,62101.0,62100.0,0.00168]
[1727811143096,0.3496908,62101.0,62100.0,0.00168]
[1727811143332,0.74878967,62101.0,62100.0,0.00168]
[1727811143585,0.97109892,62101.0,62100.0,0.00168]
[1727811143800,1.26282444,62101.0,62100.0,0.00268]
[1727811144020,1.7334925,62101.0,62100.0,0.00268]
[1727811144262,1.41927122,62101.0,62100.0,0.00268]
[1727811144484,1.42126324,62101.0,62100.0,0.00168]
[1727811144705,1.73491339,62101.0,62100.0,0.00168]
[1727811144938,1.77091339,62101.0,62100.0,0.00055536]
[1727811145219,0.470855,62094.0,62093.0,0.00368]
[1727811145464,1.34202146,62094.0,62093.0,0.00368]
[1727811145708,1.54452281,62094.0,62093.0,0.00368]
[1727811145922,1.73957842,62094.0,62093.0,0.00368]
[1727811146628,1.88421654,62094.0,62093.0,0.00368]
[1727811146846,1.74157842,62094.0,62093.0,0.00368]
[1727811147065,1.44106767,62094.0,62093.0,0.00468]
[1727811147278,1.44106767,62094.0,62093.0,0.00368]
[1727811147279,1.42706767,62094.0,62093.0,0.00368]
[1727811147508,1.39426578,62094.0,62093.0,0.00468]
[1727811147716,1.51475043,62094.0,62093.0,0.00468]
[1727811147930,1.50375043,62094.0,62093.0,0.00468]
[1727811148144,1.38196645,62094.0,62093.0,0.00468]
[1727811148363,1.39596645,62094.0,62093.0,0.00468]
[1727811148584,1.02367292,62094.0,62093.0,0.00468]
[1727811148804,0.99991208,62094.0,62093.0,0.00468]
[1727811149020,0.40295712,62094.0,62093.0,0.00468]
[1727811149450,0.20970212,62094.0,62093.0,0.00468]
[1727811149668,0.40295712,62094.0,62093.0,0.00468]
[1727811149896,0.23249932,62094.0,62093.0,0.00368]
[1727811150195,0.27530028,62094.0,62093.0,0.00368]
[1727811150406,0.28930028,62094.0,62093.0,0.00368]
[1727811150622,0.45375808,62094.0,62093.0,0.00368]
[1727811150847,0.43975808,62094.0,62093.0,0.00368]
[1727811151072,0.75297511,62094.0,62093.0,0.00368]
[1727811151287,0.66560781,62094.0,62093.0,0.00368]
[1727811151547,0.44075808,62094.0,62093.0,0.00368]
[1727811151971,0.50702678,62094.0,62093.0,0.00368]
[1727811152186,0.50703004,62094.0,62093.0,0.00368]
[1727811152406,0.42613694,62094.0,62093.0,0.00368]
[1727811152630,0.21849932,62094.0,62093.0,0.00368]
[1727811153075,0.22249932,62094.0,62093.0,0.00368]
[1727811153308,0.22749932,62094.0,62093.0,0.00368]
[1727811153535,0.03924432,62094.0,62093.0,0.196938]
[1727811153985,0.02524432,62094.0,62093.0,0.196938]
[1727811154205,0.03624432,62094.0,62093.0,0.196938]
[1727811154603,0.03224432,62094.0,62093.0,0.196938]
[1727811154844,0.02524432,62094.0,62093.0,0.196938]
[1727811155925,0.02524432,62094.0,62093.0,0.197938]
[1727811156140,0.02524432,62094.0,62093.0,0.196938]
[1727811156375,0.06641745,62094.0,62093.0,0.00568]
[1727811156597,0.02524432,62094.0,62093.0,0.00568]
[1727811156808,0.02524432,62094.0,62093.0,0.196938]
[1727811157014,0.02624432,62094.0,62093.0,0.198938]
[1727811157431,0.02624432,62094.0,62093.0,0.00568]
[1727811157638,0.02724432,62094.0,62093.0,0.00568]
[1727811157928,0.02724432,62094.0,62093.0,0.198938]
[1727811158350,0.02724432,62094.0,62093.0,0.00568]
[1727811158772,0.02524432,62094.0,62093.0,0.00368]
[1727811159200,0.21849932,62094.0,62093.0,0.00568]
[1727811159402,0.02524432,62094.0,62093.0,0.00568]
[1727811159823,0.02524432,62094.0,62093.0,0.198938]
[1727811160032,0.02524432,62094.0,62093.0,0.00568]
[1727811160468,0.21849932,62094.0,62093.0,0.00368]
[1727811160676,0.22349932,62094.0,62093.0,0.00368]
[1727811161102,0.21949932,62094.0,62093.0,0.00368]
[1727811161317,0.02924432,62094.0,62093.0,0.00368]
[1727811161955,0.02824432,62094.0,62093.0,0.00368]
[1727811162200,0.04983689,62094.0,62093.0,0.00368]
[1727811162417,0.39954969,62094.0,62093.0,0.00368]
[1727811162703,0.39654969,62094.0,62093.0,0.00368]
[1727811162897,0.39954969,62094.0,62093.0,0.00368]
[1727811163115,0.47173013,62094.0,62093.0,0.00368]
[1727811163349,0.74626616,62094.0,62093.0,0.00368]
[1727811163824,0.75126616,62094.0,62093.0,0.00368]
[1727811164043,0.73098394,62094.0,62093.0,0.00368]
[1727811164226,0.72698394,62094.0,62093.0,0.00368]
[1727811164514,0.91108394,62094.0,62093.0,0.00368]
[1727811164734,0.91108394,62094.0,62084.0,0.00164]
[1727811164735,0.63258622,62086.0,62084.0,0.00164]
[1727811164958,1.34397997,62086.0,62084.0,0.00164]
[1727811165198,1.46420416,62086.0,62084.0,0.00164]
[1727811165501,1.37922796,62086.0,62084.0,0.00164]
[1727811165755,0.210283,62085.0,62084.0,0.00155638]
[1727811165968,0.88719811,62085.0,62084.0,0.00155638]
[1727811166208,0.88719811,62085.0,62072.0,0.001642]
[1727811166209,0.29332,62073.0,62072.0,0.001642]
[1727811166438,1.02267319,62073.0,62072.0,0.001642]
[1727811166661,1.0752571,62073.0,62072.0,0.001642]
[1727811167116,1.04992816,62073.0,62072.0,0.001642]
[1727811167327,1.22251406,62073.0,62072.0,0.001642]
[1727811167545,1.32637722,62073.0,62072.0,0.001642]
[1727811168219,1.30036873,62073.0,62072.0,0.001642]
[1727811168456,1.05476945,62073.0,62072.0,0.001642]
[1727811168670,1.29988986,62073.0,62072.0,0.001642]
[1727811168888,1.31388986,62073.0,62072.0,0.001642]
[1727811169339,0.99678577,62073.0,62072.0,0.001642]
[1727811169572,1.08074942,62073.0,62072.0,0.001642]
[1727811170009,1.00878577,62073.0,62072.0,0.001642]
[1727811170235,1.08075353,62073.0,62072.0,0.001642]
[1727811170463,1.08073287,62073.0,62072.0,0.001642]
[1727811171281,1.0567374,62073.0,62072.0,0.001642]
[1727811171524,1.00178577,62073.0,62072.0,0.001642]
[1727811171736,0.99678577,62073.0,62072.0,0.001642]
[1727811172614,0.66247955,62073.0,62072.0,0.001642]
[1727811174382,0.99678577,62073.0,62072.0,0.001642]
[1727811175683,0.99878577,62073.0,62072.0,0.001642]
[1727811176114,0.99678577,62073.0,62072.0,0.001642]
[1727811177685,0.88550233,62073.0,62072.0,0.001642]
[1727811177910,0.017,62071.0,62070.0,0.00123145]
[1727811178116,0.51473543,62071.0,62070.0,0.00123145]
[1727811178335,0.51467213,62071.0,62070.0,0.00123145]
[1727811178551,0.4667838,62071.0,62070.0,0.00123145]
[1727811178993,0.52467067,62071.0,62070.0,0.00123145]
[1727811179213,0.69411745,62071.0,62070.0,0.00123145]
[1727811179429,0.6941081,62071.0,62070.0,0.00123145]
[1727811179639,1.02872291,62071.0,62070.0,0.00123145]
[1727811179855,0.98084539,62071.0,62070.0,0.00123145]
[1727811180279,0.97884539,62071.0,62070.0,0.00123145]
[1727811180971,0.4827838,62071.0,62070.0,0.00123145]
[1727811181178,0.4777838,62071.0,62070.0,0.00123145]
[1727811182418,0.3727838,62071.0,62070.0,0.00123145]
[1727811182681,0.3727838,62071.0,62070.0,0.19456145]
[1727811182682,0.023,62071.0,62070.0,0.19456145]
[1727811183101,0.023,62071.0,62070.0,0.00123145]
[1727811183348,0.013,62071.0,62070.0,0.19456145]
[1727811183567,0.013,62071.0,62070.0,0.27406145]
[1727811184030,0.02525497,62073.0,62072.0,0.193323]
[1727811184466,0.02525497,62073.0,62072.0,0.187323]
[1727811184687,0.02525497,62073.0,62072.0,0.1875448]
[1727811184903,0.02525497,62073.0,62072.0,0.3618448]
[1727811185129,0.02525497,62073.0,62072.0,0.358623]
[1727811185962,0.02725497,62073.0,62072.0,0.358623]
[1727811186172,0.02625497,62073.0,62072.0,0.358623]
[1727811186593,0.02725497,62073.0,62072.0,0.358623]
[1727811187696,0.02625497,62073.0,62072.0,0.358623]
[1727811187924,0.02525497,62073.0,62072.0,0.358623]
[1727811188135,0.02725497,62073.0,62072.0,0.360623]
[1727811188394,0.02625497,62073.0,62072.0,0.358623]
[1727811188611,0.02625497,62073.0,62072.0,0.360623]
[1727811188831,0.02625497,62073.0,62072.0,0.358623]
[1727811189049,0.02725497,62073.0,62072.0,0.358623]
[1727811189270,0.02825497,62073.0,62072.0,0.363623]
[1727811189479,0.02725497,62073.0,62072.0,0.363623]
[1727811189980,0.02825497,62073.0,62072.0,0.363623]
[1727811190838,0.02625497,62073.0,62072.0,0.358623]
[1727811191046,0.02625497,62073.0,62072.0,0.360623]
[1727811191261,0.02725497,62073.0,62072.0,0.360623]
[1727811192851,0.02725497,62073.0,62072.0,0.0836]
[1727811193267,0.02725497,62073.0,62072.0,0.002]
[1727811193711,0.02725497,62073.0,62072.0,0.195323]
[1727811193919,0.02625497,62073.0,62072.0,0.193323]
[1727811194168,0.02525497,62073.0,62072.0,0.195323]
[1727811194389,0.02607597,62073.0,62072.0,0.365723]
[1727811194620,0.02607597,62073.0,62072.0,0.68840936]
[1727811194861,0.24056967,62083.0,62082.0,0.61100681]
[1727811195306,0.000821,62086.0,62085.0,0.193283]
[1727811195552,0.000821,62086.0,62085.0,0.290083]
[1727811197191,0.000821,62086.0,62085.0,0.193283]
[1727811197653,0.001821,62086.0,62085.0,0.199283]
[1727811197871,0.000821,62086.0,62085.0,0.203283]
[1727811198083,0.001821,62086.0,62085.0,0.203283]
[1727811198305,0.002821,62086.0,62085.0,0.211283]
[1727811198519,0.001821,62086.0,62085.0,0.201283]
[1727811198756,0.001821,62086.0,62085.0,0.206283]
[1727811198956,0.000821,62086.0,62085.0,0.198283]
[1727811200278,0.001821,62086.0,62085.0,0.199283]
[1727811200498,0.001821,62086.0,62085.0,0.203283]
[1727811200716,0.000821,62086.0,62085.0,0.197283]
[1727811200928,0.000821,62086.0,62085.0,0.193283]
[1727811201396,0.000821,62086.0,62085.0,0.002]
[1727811201607,0.000821,62086.0,62085.0,0.199283]
[1727811202040,0.000821,62086.0,62085.0,0.195283]
[1727811202249,0.001821,62086.0,62085.0,0.006]
[1727811202467,0.001821,62086.0,62085.0,0.199283]
[1727811202684,0.001821,62086.0,62085.0,0.006]
[1727811202897,0.2339376,62086.0,62085.0,0.006]
[1727811203539,0.386591,62082.0,62074.0,0.24056967]
[1727811203850,0.193295,62082.0,62077.0,0.193307]
[1727811204070,0.193291,62083.0,62079.0,0.193301]
[1727811204294,0.386577,62084.0,62079.0,0.193301]
[1727811204517,0.386577,62084.0,62077.0,0.386612]
[1727811204518,0.24056967,62085.0,62077.0,0.386613]
[1727811204704,0.193287,62084.0,62080.0,0.193298]
[1727811204956,0.43385267,62085.0,62081.0,0.193295]
[1727811205180,0.4785232,62085.0,62081.0,0.193295]
[1727811205418,0.23795353,62085.0,62081.0,0.193295]
[1727811205841,0.000821,62086.0,62066.0,0.33461481]
[1727811206067,0.3505588,62086.0,62082.0,0.193292]
[1727811206288,0.3505588,62086.0,62080.0,0.386592]
[1727811206289,0.24056967,62085.0,62080.0,0.193298]
[1727811206516,0.000821,62082.0,62080.0,0.193298]
[1727811206698,0.000821,62082.0,62081.0,0.193295]
[1727811207903,0.000821,62082.0,62075.0,0.386626]
[1727811208068,0.02955581,62081.0,62078.0,0.193304]
[1727811208272,0.194113,62082.0,62078.0,0.193304]
[1727811208661,0.194113,62082.0,62070.0,0.10123145]
[1727811208662,0.49107261,62081.0,62070.0,0.00123145]
[1727811208936,0.33461481,62076.0,62070.0,0.00123145]
[1727811209193,0.1564578,62076.0,62070.0,0.38788945]
[1727811209828,0.1564578,62076.0,62072.0,0.193321]
[1727811210038,0.1564578,62076.0,62071.0,0.386652]
[1727811210468,0.3497708,62076.0,62071.0,0.193325]
[1727811210675,0.3517708,62076.0,62071.0,0.193325]
[1727811210885,0.3537708,62076.0,62070.0,0.00123145]
[1727811211093,0.5470798,62076.0,62070.0,0.00123145]
[1727811211302,0.193326,62071.0,62070.0,0.00123145]
[1727811211780,0.3497838,62071.0,62070.0,0.00123145]
[1727811211996,0.4455838,62071.0,62070.0,0.00123145]
[1727811212429,0.4475838,62071.0,62070.0,0.00123145]
[1727811212728,0.60203058,62071.0,62070.0,0.00123145]
[1727811213736,0.60303058,62071.0,62070.0,0.00123145]
[1727811213977,0.60303058,62071.0,62070.0,0.00323145]
[1727811214190,0.62828334,62071.0,62070.0,0.00323145]
[1727811214407,0.62828334,62071.0,62070.0,0.00123145]
[1727811214619,0.63128334,62071.0,62070.0,0.00123145]
[1727811214836,0.6383465,62071.0,62070.0,0.00123145]
[1727811215061,0.63128334,62071.0,62070.0,0.00123145]
[1727811215330,0.81035983,62071.0,62070.0,0.00123145]
[1727811215546,0.80335983,62071.0,62070.0,0.00123145]
[1727811215763,0.70603058,62071.0,62070.0,0.00123145]
[1727811216238,0.70303058,62071.0,62070.0,0.00123145]
[1727811216451,0.76007206,62071.0,62070.0,0.00123145]
[1727811216899,0.5535838,62071.0,62070.0,0.00123145]
[1727811217129,0.4497838,62071.0,62070.0,0.00123145]
[1727811217365,0.1784578,62071.0,62070.0,0.00123145]
[1727811217583,0.3717838,62071.0,62070.0,0.00123145]
[1727811217822,0.3497838,62071.0,62070.0,0.00123145]
[1727811218070,0.3677838,62071.0,62070.0,0.00123145]
[1727811218286,0.48009008,62071.0,62070.0,0.00123145]
[1727811218910,0.3677838,62071.0,62070.0,0.00123145]
[1727811219648,0.018,62071.0,62070.0,0.00123145]
[1727811219847,0.018,62071.0,62070.0,0.19456145]
[1727811220074,0.018,62071.0,62070.0,0.00123145]
[1727811220507,0.018,62071.0,62070.0,0.19456145]
[1727811220721,0.000821,62073.0,62070.0,0.00123145]
[1727811220944,0.000821,62073.0,62071.0,0.190325]
[1727811221156,0.000821,62073.0,62070.0,0.00323145]
[1727811221157,0.194144,62073.0,62070.0,0.00323145]
[1727811221578,0.194144,62073.0,62070.0,0.00123145]
[1727811222261,0.000821,62073.0,62070.0,0.00123145]
[1727811222478,0.193326,62071.0,62070.0,0.00123145]
[1727811222691,0.3497838,62071.0,62070.0,0.00123145]
[1727811222943,0.3507838,62071.0,62070.0,0.00123145]
[1727811223158,0.3507838,62071.0,62070.0,0.00223145]
[1727811223372,0.3497838,62071.0,62070.0,0.00123145]
[1727811223597,0.62253058,62071.0,62070.0,0.00223145]
[1727811224036,0.67062004,62071.0,62070.0,0.00123145]
[1727811224267,0.61153058,62071.0,62070.0,0.00123145]